Workbook

Sheet Instructions

Sheet Design Sheet (hidden)
B1: Fat/Oil
B2: Apricot Kernel | C2: Soaping Oils | G2: Expected Soap Characteristics | O2: Fatty Acid Composition | Y2: Comparison Chart
B3: Avocado | C3: Oil Name | D3: % | H3: Hardness | I3: Cleansing | J3: Conditioning | K3: Bubbly | L3: Creamy | M3: Longevity | O3: Oil Name | P3: Lauric | Q3: Myristic | R3: Palmitic | S3: Stearic | T3: Ricinoleic | U3: Oleic | V3: Linoleic | W3: Linolenic | Z3: Lower Range | AA3: Actual Value | AB3: Upper Range
B4: Avocado Butter | C4: Olive | D4: 0.35 | G4: =O4 -> Olive | H4: =SUM(P4:S4) -> 5.95 | I4: =SUM(P4:Q4) -> 0 | J4: =SUM(T4:W4) -> 28.7 | K4: =SUM(T4,P4:Q4) -> 0 | L4: =SUM(R4:T4) -> 5.95 | M4: =R4+S4 -> 5.95 | O4: =C4 -> Olive | P4: =IF(ISBLANK($C4),0,VLOOKUP($C4,'Oils by Fatty Acids List'!A:B,2))*$D4 -> 0 | Q4: =IF(ISBLANK($C4),0,VLOOKUP($C4,'Oils by Fatty Acids List'!A:C,3))*$D4 -> 0 | R4: =IF(ISBLANK($C4),0,VLOOKUP($C4,'Oils by Fatty Acids List'!A:D,4))*$D4 -> 4.9 | S4: =IF(ISBLANK($C4),0,VLOOKUP(C4,'Oils by Fatty Acids List'!A:E,5))*$D4 -> 1.05 | T4: =IF(ISBLANK($C4),0,VLOOKUP(C4,'Oils by Fatty Acids List'!A:F,6))*$D4 -> 0 | U4: =IF(ISBLANK($C4),0,VLOOKUP(C4,'Oils by Fatty Acids List'!A:G,7))*$D4 -> 24.15 | V4: =IF(ISBLANK($C4),0,VLOOKUP($C4,'Oils by Fatty Acids List'!A:H,8)*$D4) -> 4.2 | W4: =IF(ISBLANK($C4),0,VLOOKUP($C4,'Oils by Fatty Acids List'!A:I,9))*$D4 -> 0.35 | Y4: Max
B5: Babassu, brazil nut | C5: Coconut | D5: 0.2 | G5: Coconut | H5: 15.8 | I5: 13.4 | J5: 2 | K5: 13.4 | L5: 2.4 | M5: =R5+S5 -> 2.4 | O5: Coconut | P5: =IF(ISBLANK($C5),0,VLOOKUP($C5,'Oils by Fatty Acids List'!A:B,2))*$D5 -> 9.6 | Q5: =IF(ISBLANK($C5),0,VLOOKUP($C5,'Oils by Fatty Acids List'!A:C,3))*$D5 -> 3.8 | R5: =IF(ISBLANK($C5),0,VLOOKUP($C5,'Oils by Fatty Acids List'!A:D,4))*$D5 -> 1.8 | S5: =IF(ISBLANK($C5),0,VLOOKUP(C5,'Oils by Fatty Acids List'!A:E,5))*$D5 -> 0.6 | T5: =IF(ISBLANK($C5),0,VLOOKUP(C5,'Oils by Fatty Acids List'!A:F,6))*$D5 -> 0 | U5: =IF(ISBLANK($C5),0,VLOOKUP(C5,'Oils by Fatty Acids List'!A:G,7))*$D5 -> 1.6 | V5: =IF(ISBLANK($C5),0,VLOOKUP($C5,'Oils by Fatty Acids List'!A:H,8)*$D5) -> 0.4 | W5: =IF(ISBLANK($C5),0,VLOOKUP($C5,'Oils by Fatty Acids List'!A:I,9))*$D5 -> 0 | Y5: Hardness | Z5: 29 | AA5: =H12 -> 39 | AB5: 54
B6: Beeswax | C6: Lard | D6: 0.25 | G6: Lard | H6: 10.5 | I6: 0.25 | J6: 13 | K6: 0.25 | L6: 10.25 | M6: 10.25 | O6: Lard | P6: =IF(ISBLANK($C6),0,VLOOKUP($C6,'Oils by Fatty Acids List'!A:B,2))*$D6 -> 0 | Q6: =IF(ISBLANK($C6),0,VLOOKUP($C6,'Oils by Fatty Acids List'!A:C,3))*$D6 -> 0.25 | R6: =IF(ISBLANK($C6),0,VLOOKUP($C6,'Oils by Fatty Acids List'!A:D,4))*$D6 -> 7 | S6: =IF(ISBLANK($C6),0,VLOOKUP(C6,'Oils by Fatty Acids List'!A:E,5))*$D6 -> 3.25 | T6: =IF(ISBLANK($C6),0,VLOOKUP(C6,'Oils by Fatty Acids List'!A:F,6))*$D6 -> 0 | U6: =IF(ISBLANK($C6),0,VLOOKUP(C6,'Oils by Fatty Acids List'!A:G,7))*$D6 -> 11.5 | V6: =IF(ISBLANK($C6),0,VLOOKUP($C6,'Oils by Fatty Acids List'!A:H,8)*$D6) -> 1.5 | W6: =IF(ISBLANK($C6),0,VLOOKUP($C6,'Oils by Fatty Acids List'!A:I,9))*$D6 -> 0 | Y6: Cleansing | Z6: 12 | AA6: =I12 -> 13.65 | AB6: 22
B7: Borage | C7: Shea Butter | D7: 0.15 | G7: Shea Butter | H7: 6.75 | I7: 0 | J7: 8.1 | K7: 0 | L7: 6.75 | M7: 6.75 | O7: Shea Butter | P7: =IF(ISBLANK($C7),0,VLOOKUP($C7,'Oils by Fatty Acids List'!A:B,2))*$D7 -> 0 | Q7: =IF(ISBLANK($C7),0,VLOOKUP($C7,'Oils by Fatty Acids List'!A:C,3))*$D7 -> 0 | R7: =IF(ISBLANK($C7),0,VLOOKUP($C7,'Oils by Fatty Acids List'!A:D,4))*$D7 -> 0.75 | S7: =IF(ISBLANK($C7),0,VLOOKUP(C7,'Oils by Fatty Acids List'!A:E,5))*$D7 -> 6 | T7: =IF(ISBLANK($C7),0,VLOOKUP(C7,'Oils by Fatty Acids List'!A:F,6))*$D7 -> 0 | U7: =IF(ISBLANK($C7),0,VLOOKUP(C7,'Oils by Fatty Acids List'!A:G,7))*$D7 -> 7.2 | V7: =IF(ISBLANK($C7),0,VLOOKUP($C7,'Oils by Fatty Acids List'!A:H,8)*$D7) -> 0.9 | W7: =IF(ISBLANK($C7),0,VLOOKUP($C7,'Oils by Fatty Acids List'!A:I,9))*$D7 -> 0 | Y7: Conditioning | Z7: 44 | AA7: =J12 -> 56.7 | AB7: 69
B8: Brazil Nut | C8: Castor | D8: 0.05 | G8: Castor | H8: 0 | I8: 0 | J8: 4.9 | K8: 4.5 | L8: 4.5 | M8: 0 | O8: Castor | P8: =IF(ISBLANK($C8),0,VLOOKUP($C8,'Oils by Fatty Acids List'!A:B,2))*$D8 -> 0 | Q8: =IF(ISBLANK($C8),0,VLOOKUP($C8,'Oils by Fatty Acids List'!A:C,3))*$D8 -> 0 | R8: =IF(ISBLANK($C8),0,VLOOKUP($C8,'Oils by Fatty Acids List'!A:D,4))*$D8 -> 0 | S8: =IF(ISBLANK($C8),0,VLOOKUP(C8,'Oils by Fatty Acids List'!A:E,5))*$D8 -> 0 | T8: =IF(ISBLANK($C8),0,VLOOKUP(C8,'Oils by Fatty Acids List'!A:F,6))*$D8 -> 4.5 | U8: =IF(ISBLANK($C8),0,VLOOKUP(C8,'Oils by Fatty Acids List'!A:G,7))*$D8 -> 0.2 | V8: =IF(ISBLANK($C8),0,VLOOKUP($C8,'Oils by Fatty Acids List'!A:H,8)*$D8) -> 0.2 | W8: =IF(ISBLANK($C8),0,VLOOKUP($C8,'Oils by Fatty Acids List'!A:I,9))*$D8 -> 0 | Y8: Bubbly | Z8: 14 | AA8: =K12 -> 18.15 | AB8: 46
B9: Camellia | G9: 0 | H9: 0 | I9: 0 | J9: 0 | K9: 0 | L9: 0 | M9: 0 | O9: 0 | P9: =IF(ISBLANK($C9),0,VLOOKUP($C9,'Oils by Fatty Acids List'!A:B,2))*$D9 -> 0 | Q9: =IF(ISBLANK($C9),0,VLOOKUP($C9,'Oils by Fatty Acids List'!A:C,3))*$D9 -> 0 | R9: =IF(ISBLANK($C9),0,VLOOKUP($C9,'Oils by Fatty Acids List'!A:D,4))*$D9 -> 0 | S9: =IF(ISBLANK($C9),0,VLOOKUP(C9,'Oils by Fatty Acids List'!A:E,5))*$D9 -> 0 | T9: =IF(ISBLANK($C9),0,VLOOKUP(C9,'Oils by Fatty Acids List'!A:F,6))*$D9 -> 0 | U9: =IF(ISBLANK($C9),0,VLOOKUP(C9,'Oils by Fatty Acids List'!A:G,7))*$D9 -> 0 | V9: =IF(ISBLANK($C9),0,VLOOKUP($C9,'Oils by Fatty Acids List'!A:H,8)*$D9) -> 0 | W9: =IF(ISBLANK($C9),0,VLOOKUP($C9,'Oils by Fatty Acids List'!A:I,9))*$D9 -> 0 | Y9: Creamy | Z9: 16 | AA9: =L12 -> 29.85 | AB9: 48
B10: Candelilla Wax | G10: 0 | H10: 0 | I10: 0 | J10: 0 | K10: 0 | L10: 0 | M10: 0 | O10: 0 | P10: =IF(ISBLANK($C10),0,VLOOKUP($C10,'Oils by Fatty Acids List'!A:B,2))*$D10 -> 0 | Q10: =IF(ISBLANK($C10),0,VLOOKUP($C10,'Oils by Fatty Acids List'!A:C,3))*$D10 -> 0 | R10: =IF(ISBLANK($C10),0,VLOOKUP($C10,'Oils by Fatty Acids List'!A:D,4))*$D10 -> 0 | S10: =IF(ISBLANK($C10),0,VLOOKUP(C10,'Oils by Fatty Acids List'!A:E,5))*$D10 -> 0 | T10: =IF(ISBLANK($C10),0,VLOOKUP(C10,'Oils by Fatty Acids List'!A:F,6))*$D10 -> 0 | U10: =IF(ISBLANK($C10),0,VLOOKUP(C10,'Oils by Fatty Acids List'!A:G,7))*$D10 -> 0 | V10: =IF(ISBLANK($C10),0,VLOOKUP($C10,'Oils by Fatty Acids List'!A:H,8)*$D10) -> 0 | W10: =IF(ISBLANK($C10),0,VLOOKUP($C10,'Oils by Fatty Acids List'!A:I,9))*$D10 -> 0 | Y10: Longevity | Z10: 25 | AA10: =M12 -> 25.35 | AB10: 50
B11: Canola | G11: 0 | H11: 0 | I11: 0 | J11: 0 | K11: 0 | L11: 0 | M11: 0 | O11: 0 | P11: =IF(ISBLANK($C11),0,VLOOKUP($C11,'Oils by Fatty Acids List'!A:B,2))*$D11 -> 0 | Q11: =IF(ISBLANK($C11),0,VLOOKUP($C11,'Oils by Fatty Acids List'!A:C,3))*$D11 -> 0 | R11: =IF(ISBLANK($C11),0,VLOOKUP($C11,'Oils by Fatty Acids List'!A:D,4))*$D11 -> 0 | S11: =IF(ISBLANK($C11),0,VLOOKUP(C11,'Oils by Fatty Acids List'!A:E,5))*$D11 -> 0 | T11: =IF(ISBLANK($C11),0,VLOOKUP(C11,'Oils by Fatty Acids List'!A:F,6))*$D11 -> 0 | U11: =IF(ISBLANK($C11),0,VLOOKUP(C11,'Oils by Fatty Acids List'!A:G,7))*$D11 -> 0 | V11: =IF(ISBLANK($C11),0,VLOOKUP($C11,'Oils by Fatty Acids List'!A:H,8)*$D11) -> 0 | W11: =IF(ISBLANK($C11),0,VLOOKUP($C11,'Oils by Fatty Acids List'!A:I,9))*$D11 -> 0
B12: Castor | C12: Total % | D12: =SUM(D4:D11) -> 1 | G12: Totals | H12: =SUM(H4:H11) -> 39 | I12: 13.65 | J12: 56.7 | K12: 18.15 | L12: 29.85 | M12: 25.35 | O12: Totals | P12: =SUM(P4:P11) -> 9.6 | Q12: 4.05 | R12: 14.45 | S12: 10.9 | T12: 4.5 | U12: 44.65 | V12: 7.2 | W12: 0.35
B13: Chicken Fat | G13: % Total | H13: =H12/(SUM($H$4:$M$11)) -> 0.2134646962 | I13: 0.07471264368 | J13: 0.3103448276 | K13: 0.09934318555 | L13: 0.1633825944 | M13: 0.1387520525 | O13: % Total | P13: =P12/(SUM($P$4:$W$11)) -> 0.1003134796 | Q13: =Q12/(SUM($P$4:$W$11)) -> 0.04231974922 | R13: 0.1509926855 | S13: 0.1138975967 | T13: 0.04702194357 | U13: 0.4665621735 | V13: 0.07523510972 | W13: 0.003657262278
B14: Cocoa Butter
B15: Coconut | R15: %
B16: Cottonseed | R16: 1
B17: Evening Primrose | R17: =AA5/AB5 -> 0.7222222222
B18: Flaxseed | R18: 0.6204545455
B19: Goose Fat | R19: 0.8217391304
B20: Grapeseed | R20: 0.3945652174
B21: Hazelnut | R21: 0.621875
B22: Hemp Seed | R22: 0.507
B23: Jojoba (Wax)
B24: Lanolin
B25: Lard
B26: Linseed
B27: Macadamia
B28: Mango Butter
B29: Meadowfoam
B30: Mink
B31: Mustard
B32: Neat's foot
B33: Neem
B34: Not Used
B35: Nutmeg Butter
B36: Olive Pomace
B37: Olive
B38: Palm
B39: Palm Kernel
B40: Palm, Stearic
B41: Peach Kernel
B42: Peanut
B43: Perilla
B44: Pistachio Nut
B45: Poppyseed
B46: Pumpkinseed
B47: Rapeseed
B48: Rice Bran
B49: Rose Hip Seed
B50: Safflower
B51: Sal Butter
B52: Sesame Seed
B53: Shea Butter
B54: Soybean
B55: Stearic Acid
B56: Sunflower Seed
B57: Sweet Almond
B58: Tamanu
B59: Walnut
B60: Wheatgerm
B61: 0
B62: 0
B63: 0
B64: 0
B65: 0
B66: 0
B67: 0
B68: 0
B69: 0
B70: 0
B71: 0
B72: 0
B73: 0
B74: 0
B75: 0
B76: 0
B77: 0
B78: 0
B79: 0
B80: 0
B81: 0
B82: 0
B83: 0
B84: 0
B85: 0
B86: 0
B87: 0
B88: 0
B89: 0
B90: 0
B91: 0
B92: 0
B93: 0
B94: 0
B95: 0
B96: 0
B97: 0
B98: 0
Y145: Instructions
Y146: I find this helpful to visualise what properties a soap will have - and to make sure I don’t do something stupid! The various tables use standard values to evaluate the likely characteristics of the finished product given the percentages of the oils that might be used.
Y147: Simply type in the name of the oils you wish to use (from the list on the right) and the percentage of each in the “Soaping Oils” table and the program will find the fatty acid breakdown and calculate the soapy character of the resulting soap.
Y148: If you wish to add an oil not on the list you need to find all its fatty acid breakdown and add it to the “Oils by Fatty Acid List” sheet
Y149: The tables will check that you have added 100% of oils by changing colour if there is a problem. Similarly, the “Expected Soap Characteristics” table totals will turn yellow if a value is too low and red if it is too high. This information is also available visually on the graph which will update dynamically with the green bar showing the actual result compared to the other bars showing the upper and lower desirable values.
Y150: Once you have a formula that you are happy with just copy it to the “Recipe” table to embellish it with colours and fragrances.

Sheet Print 1 (hidden)
G3: =TODAY() -> 2023-09-27 | H3: Date ready | I3: =G3+30 -> 2023-10-27
B6: Container volume (ml) | C6: =Recipe!C6 -> 1420 | F6: Weight of Batch (g) | G6: =Recipe!C8 -> 1388.76096
B7: Water:Lye Ratio | C7: =Recipe!C3 -> 2:1, Moderate Discount | F7: Volume of Oils (ml) | G7: =Recipe!C9 -> 1017
B8: Superfat | C8: =Recipe!C4 -> 0.04 | F8: Weight of Water (g) | G8: =Recipe!C10 -> 270
B9: Number of Bars | C9: =Recipe!C7 -> 9 | F9: Weight of Lye (g) | G9: =Recipe!C12 -> 142.76096
B10: Lye as % of Water | C10: =Recipe!C14 -> 0.3458683689 | F10: Weight of Oils (g) | G10: =Recipe!C11 -> 936
B11: Loaves | C11: =VLOOKUP(Recipe!C2,'Mould Sizes'!B4:L16,10,FALSE) -> 1 | F11: Bar Weight | G11: =Recipe!C17 -> 154
B12: Citric Acid | C12: =Recipe!F12 -> Yes | F12: Cured Bar Weight | G12: =Recipe!C18 -> 124
B14: Oils | G14: Notes
B15: Type of Oil | C15: % | D15: Weight | E15: Cost
B16: =Recipe!E4 -> Olive | C16: =Recipe!F4 -> 0.35 | D16: =IF(B16>0,Recipe!H4,0) -> 328 | E16: =Recipe!J4 -> 1.968
B17: =Recipe!E5 -> Coconut | C17: =Recipe!F5 -> 0.2 | D17: =IF(B17>0,Recipe!H5,0) -> 187 | E17: =Recipe!J5 -> 1.0846
B18: =Recipe!E6 -> Lard | C18: =Recipe!F6 -> 0.25 | D18: =IF(B18>0,Recipe!H6,0) -> 234 | E18: =Recipe!J6 -> 4.67064
B19: =Recipe!E7 -> Shea Butter | C19: =Recipe!F7 -> 0.15 | D19: =IF(B19>0,Recipe!H7,0) -> 140 | E19: =Recipe!J7 -> 2.66
B20: =Recipe!E8 -> Castor | C20: =Recipe!F8 -> 0.05 | D20: =IF(B20>0,Recipe!H8,0) -> 47 | E20: =Recipe!J8 -> 0.4277
B21: =Recipe!E9 -> 0 | C21: =Recipe!F9 -> 0 | D21: =IF(B21>0,Recipe!H9,0) -> 0 | E21: =Recipe!J9 -> 0
B22: =Recipe!E10 -> 0 | C22: =Recipe!F10 -> 0 | D22: =IF(B22>0,Recipe!H10,0) -> 0 | E22: =Recipe!J10 -> 0
B23: =Recipe!E11 -> 0 | C23: =Recipe!F11 -> 0 | D23: =IF(B23>0,Recipe!H11,0) -> 0 | E23: =Recipe!J11 -> 0
B24: Total | C24: =SUM(C16:C23) -> 1 | D24: =SUM(D16:D23) -> 936 | E24: 10.81094
B26: Fragrances
B27: Name of Fragrance | C27: % | D27: Weight | E27: Cost
B28: =Recipe!E17 -> Patchouli | C28: =Recipe!G17 -> 0 | D28: =IF(Recipe!H17>0,Recipe!H17,Recipe!I17) -> 20 | E28: =Recipe!J17 -> 0.96
B29: =Recipe!E18 -> Lavender | C29: =Recipe!G18 -> 0 | D29: =IF(Recipe!H18>0,Recipe!H18,Recipe!I18) -> 20 | E29: =Recipe!J18 -> 5.4
B30: =Recipe!E19 -> 0 | C30: =Recipe!G19 -> 0 | D30: =IF(Recipe!H19>0,Recipe!H19,Recipe!I19) -> 0 | E30: =Recipe!J19 -> 0
B31: =Recipe!E20 -> 0 | C31: =Recipe!G20 -> 0 | D31: =IF(Recipe!H20>0,Recipe!H20,Recipe!I20) -> 0 | E31: =Recipe!J20 -> 0
B32: =Recipe!E21 -> 0 | C32: =Recipe!G21 -> 0 | D32: =IF(Recipe!H21>0,Recipe!H21,Recipe!I21) -> 0 | E32: =Recipe!J21 -> 0
B33: =Recipe!E22 -> 0 | C33: =Recipe!G22 -> 0 | D33: =IF(Recipe!H22>0,Recipe!H22,Recipe!I22) -> 0 | E33: =Recipe!J22 -> 0
B34: =Recipe!E23 -> 0 | C34: =Recipe!G23 -> 0 | D34: =IF(Recipe!H23>0,Recipe!H23,Recipe!I23) -> 0 | E34: =Recipe!J23 -> 0
B35: =B24 -> Total | D35: =SUM(D28:D34) -> 40 | E35: =SUM(E28:E34) -> 6.36
B37: Colours
B38: Name of Colour | D38: Weight | E38: Cost
B39: =Recipe!E28 -> 0 | D39: =Recipe!F28 -> 0 | E39: =Recipe!G28 -> 0
B40: =Recipe!E29 -> 0 | D40: =Recipe!F29 -> 0 | E40: =Recipe!G29 -> 0
B41: =Recipe!E30 -> 0 | D41: =Recipe!F30 -> 0 | E41: =Recipe!G30 -> 0
B42: =Recipe!E31 -> 0 | D42: =Recipe!F31 -> 0 | E42: =Recipe!G31 -> 0
B43: =Recipe!E32 -> 0 | D43: =Recipe!F32 -> 0 | E43: =Recipe!G32 -> 0
B44: =Recipe!E33 -> 0 | D44: =Recipe!F33 -> 0 | E44: =Recipe!G33 -> 0
B45: =Recipe!E34 -> 0 | D45: =Recipe!F34 -> 0 | E45: =Recipe!G34 -> 0
B46: =B24 -> Total | D46: =SUM(D39:D45) -> 0 | E46: =SUM(E39:E45) -> 0
B48: Additives
B49: Name | D49: Amount | E49: Cost
B50: =Recipe!H28 -> 0 | D50: =Recipe!I28 -> 0 | E50: =Recipe!J28 -> 0
B51: =Recipe!H29 -> 0 | D51: =Recipe!I29 -> 0 | E51: =Recipe!J29 -> 0
B52: =Recipe!H30 -> 0 | D52: =Recipe!I30 -> 0 | E52: =Recipe!J30 -> 0
B53: =Recipe!H31 -> 0 | D53: =Recipe!I31 -> 0 | E53: =Recipe!J31 -> 0
B54: =Recipe!H32 -> 0 | D54: =Recipe!I32 -> 0 | E54: =Recipe!J32 -> 0
B55: =Recipe!H33 -> 0 | D55: =Recipe!I33 -> 0 | E55: =Recipe!J33 -> 0
B56: =Recipe!E12 -> Citric Acid (1.5%) | D56: =Recipe!H12 -> 14.04 | E56: =Recipe!J12 -> 0.32682
B57: =B24 -> Total | D57: =SUM(D50:D56) -> 14.04 | E57: =SUM(E50:E56) -> 0.32682
B59: Cost per Bar | C59: =C61/C9 -> 1.944195556
B61: Cost of Batch | C61: =SUM(E57+E46+E35+E24) -> 17.49776

Sheet Recipe
B2: Mould Used | C2: Small Silicone Loaf | E2: Oils
B3: Water:Lye Ratio | C3: 2:1, Moderate Discount | E3: Name of Oil | F3: % | G3: Manual Oil Weights | H3: Auto Oil Weights | I3: Weight of Lye (NaOH) | J3: Cost
B4: Superfat | C4: 0.04 | E4: Olive | F4: 0.35 | H4: =IF(E4>0,IFERROR(IF($G$13>0,"<= Use Manual Input",'Calculations 2'!J10),0),0) -> 328 | I4: ='Calculations 2'!K10 -> 44 | J4: =IFERROR(VLOOKUP(E4,Oils!A:G,7,FALSE)*'Calculations 2'!J10,0) -> 1.968
B5: Mould Max Volume (ml) | C5: =IFERROR(VLOOKUP(C2,'Mould Sizes'!B:L,5,FALSE),0) -> 1456 | E5: Coconut | F5: 0.2 | H5: =IF(E5>0,IFERROR(IF($G$13>0,"<= Use Manual Input",'Calculations 2'!J11),0),0) -> 187 | I5: ='Calculations 2'!K11 -> 34 | J5: =IFERROR(VLOOKUP(E5,Oils!A:G,7,FALSE)*'Calculations 2'!J11,0) -> 1.0846
B6: Actual Volume Used in Mould | C6: =IFERROR(VLOOKUP(C2,'Mould Sizes'!B3:M33,11,FALSE),0) -> 1420 | E6: Lard | F6: 0.25 | H6: =IF(E6>0,IFERROR(IF($G$13>0,"<= Use Manual Input",'Calculations 2'!J12),0),0) -> 234 | I6: ='Calculations 2'!K12 -> 32 | J6: =IFERROR(VLOOKUP(E6,Oils!A:G,7,FALSE)*'Calculations 2'!J12,0) -> 4.67064
B7: Number of Bars | C7: =IFERROR(VLOOKUP(C2,'Mould Sizes'!B4:M21,12,FALSE),0) -> 9 | E7: Shea Butter | F7: 0.15 | H7: =IF(E7>0,IFERROR(IF($G$13>0,"<= Use Manual Input",'Calculations 2'!J13),0),0) -> 140 | I7: ='Calculations 2'!K13 -> 18 | J7: =IFERROR(VLOOKUP(E7,Oils!A:G,7,FALSE)*'Calculations 2'!J13,0) -> 2.66
B8: Weight of Batch | C8: =IFERROR(C11+C10+I13+I24+F35+I35,0) -> 1388.76096 | E8: Castor | F8: 0.05 | H8: =IF(E8>0,IFERROR(IF($G$13>0,"<= Use Manual Input",'Calculations 2'!J14),0),0) -> 47 | I8: ='Calculations 2'!K14 -> 6 | J8: =IFERROR(VLOOKUP(E8,Oils!A:G,7,FALSE)*'Calculations 2'!J14,0) -> 0.4277
B9: Volume of Oils (ml) | C9: =IFERROR('Calculations 2'!I18,0) -> 1017 | H9: =IF(E9>0,IFERROR(IF($G$13>0,"<= Use Manual Input",'Calculations 2'!J15),0),0) -> 0 | I9: ='Calculations 2'!K15 -> 0 | J9: =IFERROR(VLOOKUP(E9,Oils!A:G,7,FALSE)*'Calculations 2'!J15,0) -> 0
B10: Volume/Weight of Water (g) | C10: =IFERROR('Calculations 2'!L18,0) -> 270 | H10: =IF(E10>0,IFERROR(IF($G$13>0,"<= Use Manual Input",'Calculations 2'!J16),0),0) -> 0 | I10: ='Calculations 2'!K16 -> 0 | J10: =IFERROR(VLOOKUP(E10,Oils!A:G,7,FALSE)*'Calculations 2'!J16,0) -> 0
B11: Weight of Oils | C11: =IFERROR('Calculations 2'!J18,0) -> 936 | H11: =IF(E11>0,IFERROR(IF($G$13>0,"<= Use Manual Input",'Calculations 2'!J17),0),0) -> 0 | I11: ='Calculations 2'!K17 -> 0 | J11: =IFERROR(VLOOKUP(E11,Oils!A:G,7,FALSE)*'Calculations 2'!J17,0) -> 0
B12: Adjusted Lye Weight | C12: =I13 -> 142.76096 | E12: Citric Acid (1.5%) | F12: Yes | H12: =IF(F12="Yes",IF(H13>0,(0.015*H13),0.015*G13),0) -> 14.04 | I12: =H12*0.624 -> 8.76096 | J12: =IFERROR(VLOOKUP(E12,Oils!A:G,7,FALSE)*H12,0) -> 0.32682
B13: Water as a % of Oils | C13: =IFERROR(C10/C11,0) -> 0.2884615385 | E13: Totals | F13: =SUM(F4:F12) -> 1 | G13: =SUM(G4:G12) -> 0 | H13: =SUM(H4:H11) -> 936 | I13: =SUM(I4:I12) -> 142.76096 | J13: =SUM(J4:J12) -> 11.13776
B14: Lye as % of Water | C14: =IFERROR(C12/(C10+C12),0) -> 0.3458683689
B15: Cost of Batch | C15: =(J13+J24+G35+J35) -> 17.49776 | E15: Fragrances
B16: Cost per Bar | C16: =IFERROR((C15/C7),0) -> 1.944195556 | E16: Name of Fragrance | G16: % | H16: Manual Weight | I16: Auto Weight | J16: Cost
B17: Cut Weight of Bar (g) | C17: =IFERROR(ROUNDDOWN(C8/C7,0),0) -> 154 | E17: Patchouli | H17: 20 | I17: =IFERROR(IF(H17>0,H17,G17*(C$11)),0) -> 20 | J17: =IF(E17<>0,VLOOKUP(E17,Fragrance!A:G,7,FALSE)*Recipe!I17,0) -> 0.96
B18: Cured Weight of Bars (g) | C18: =IFERROR(ROUNDDOWN((C8-C10)/C7,0),0) -> 124 | E18: Lavender | H18: 20 | I18: 20 | J18: =IF(E18<>0,VLOOKUP(E18,Fragrance!A:G,7,FALSE)*Recipe!I18,0) -> 5.4 | U18: =IFERROR((C$9*F12)*T18,0) -> 0
I19: 0 | J19: =IF(E19<>0,VLOOKUP(E19,Fragrance!A:G,7,FALSE)*Recipe!I19,0) -> 0
I20: 0 | J20: =IF(E20<>0,VLOOKUP(E20,Fragrance!A:G,7,FALSE)*Recipe!I20,0) -> 0
I21: 0 | J21: =IF(E21<>0,VLOOKUP(E21,Fragrance!A:G,7,FALSE)*Recipe!I21,0) -> 0
I22: 0 | J22: =IF(E22<>0,VLOOKUP(E22,Fragrance!A:G,7,FALSE)*Recipe!I22,0) -> 0
I23: 0 | J23: =IF(E23<>0,VLOOKUP(E23,Fragrance!A:G,7,FALSE)*Recipe!I23,0) -> 0
E24: Totals | G24: =SUM(G16:G23) -> 0 | I24: =SUM(I16:I23) -> 40 | J24: =SUM(J17:J23) -> 6.36
E26: Colours | H26: Additives
E27: Name of Colour | F27: Amount | G27: Cost | H27: Name | I27: Amount | J27: Cost
G28: =IFERROR(VLOOKUP(E28,Colourants!A:G,7,FALSE)*F28,0) -> 0
G29: =IFERROR(VLOOKUP(E29,Colourants!A:G,7,FALSE)*F29,0) -> 0
G30: =IFERROR(VLOOKUP(E30,Colourants!A:G,7,FALSE)*F30,0) -> 0
G31: =IFERROR(VLOOKUP(E31,Colourants!A:G,7,FALSE)*F31,0) -> 0
G32: =IFERROR(VLOOKUP(E32,Colourants!A:G,7,FALSE)*F32,0) -> 0
G33: =IFERROR(VLOOKUP(E33,Colourants!A:G,7,FALSE)*F33,0) -> 0
G34: =IFERROR(VLOOKUP(E34,Colourants!A:G,7,FALSE)*F34,0) -> 0
E35: Totals | F35: =SUM(F27:F34) -> 0 | G35: =SUM(G28:G34) -> 0 | H35: Totals | I35: =SUM(I28:I34) -> 0 | J35: =SUM(J28:J34) -> 0
J36: =SUM(G35+J35) -> 0

Sheet Standard Recipe Sheet (hidden)
A1: Oil Name | B1: % Used
A2: Olive | B2: 0.35
A3: Coconut | B3: 0.2
A4: Lard | B4: 0.25
A5: Shea Butter | B5: 0.15
A6: Castor | B6: 0.05
A10: Mould Used | B10: Milk Carton
A11: Water:Lye Ratio | B11: 2:1, Moderate Discount
A12: Superfat | B12: 0.04

Sheet Mould Sizes (hidden)
B2: RECTANGULAR MOULDS
B3: Mould Name | C3: Length (mm) | D3: Width (mm) | E3: Height (mm) | F3: Max Volume (cubic mm) | G3: Bar Thickness (mm) | H3: Bar Width (mm) | I3: Bar Height (mm) | J3: Bar Volume (ml) | K3: No. of Loaves | L3: Used Volume (ml) | M3: Number of Bars
B4: Milk Carton | C4: 295 | D4: 70 | E4: 70 | F4: =ROUND(IF('Mould Sizes'!$E4<>0,C4*D4*E4/1000,),0) -> 1446 | G4: 29 | H4: 70 | I4: 70 | J4: =ROUND(G4*H4*I4/1000,0) -> 142 | K4: =IFERROR(ROUNDDOWN('Mould Sizes'!$D4/'Mould Sizes'!$H4,0),0) -> 1 | L4: =ROUND('Mould Sizes'!$K4*'Mould Sizes'!$C4*'Mould Sizes'!$H4*'Mould Sizes'!$I4/1000,0) -> 1446 | M4: =ROUNDDOWN(Table5[[#This Row],[Length (mm)]]/Table5[[#This Row],[Bar Thickness (mm)]]*K4,0) -> 10
B5: Small Silicone Loaf | C5: 260 | D5: 70 | E5: 80 | F5: =ROUND(IF('Mould Sizes'!$E5<>0,C5*D5*E5/1000,),0) -> 1456 | G5: 28 | H5: 70 | I5: 78 | J5: 153 | K5: =IFERROR(ROUNDDOWN('Mould Sizes'!$D5/'Mould Sizes'!$H5,0),0) -> 1 | L5: =ROUND('Mould Sizes'!$K5*'Mould Sizes'!$C5*'Mould Sizes'!$H5*'Mould Sizes'!$I5/1000,0) -> 1420 | M5: =ROUNDDOWN(Table5[[#This Row],[Length (mm)]]/Table5[[#This Row],[Bar Thickness (mm)]]*K5,0) -> 9
B6: Double Silicone Loaf | C6: 260 | D6: 140 | E6: 80 | F6: =ROUND(IF('Mould Sizes'!$E6<>0,C6*D6*E6/1000,),0) -> 2912 | G6: 28 | H6: 70 | I6: 79 | J6: 155 | K6: =IFERROR(ROUNDDOWN('Mould Sizes'!$D6/'Mould Sizes'!$H6,0),0) -> 2 | L6: =ROUND('Mould Sizes'!$K6*'Mould Sizes'!$C6*'Mould Sizes'!$H6*'Mould Sizes'!$I6/1000,0) -> 2876 | M6: =ROUNDDOWN(Table5[[#This Row],[Length (mm)]]/Table5[[#This Row],[Bar Thickness (mm)]]*K6,0) -> 18
B7: Small Square | C7: 230 | D7: 280 | E7: 90 | F7: =ROUND(IF('Mould Sizes'!$E7<>0,C7*D7*E7/1000,),0) -> 5796 | G7: 25 | H7: 70 | I7: 89 | J7: 156 | K7: =IFERROR(ROUNDDOWN('Mould Sizes'!$D7/'Mould Sizes'!$H7,0),0) -> 4 | L7: =ROUND('Mould Sizes'!$K7*'Mould Sizes'!$C7*'Mould Sizes'!$H7*'Mould Sizes'!$I7/1000,0) -> 5732 | M7: =ROUNDDOWN(Table5[[#This Row],[Length (mm)]]/Table5[[#This Row],[Bar Thickness (mm)]]*K7,0) -> 36
B8: Large Mould | C8: 465 | D8: 480 | E8: 85 | F8: =ROUND(IF('Mould Sizes'!$E8<>0,C8*D8*E8/1000,),0) -> 18972 | G8: 25 | H8: 70 | I8: 80 | J8: 140 | K8: =IFERROR(ROUNDDOWN('Mould Sizes'!$D8/'Mould Sizes'!$H8,0),0) -> 6 | L8: =ROUND('Mould Sizes'!$K8*'Mould Sizes'!$C8*'Mould Sizes'!$H8*'Mould Sizes'!$I8/1000,0) -> 15624 | M8: =ROUNDDOWN(Table5[[#This Row],[Length (mm)]]/Table5[[#This Row],[Bar Thickness (mm)]]*K8,0) -> 111
B9: Commercial | C9: 800 | D9: 600 | E9: 80 | F9: =ROUND(IF('Mould Sizes'!$E9<>0,C9*D9*E9/1000,),0) -> 38400 | G9: 25 | H9: 70 | I9: 79 | J9: 138 | K9: =IFERROR(ROUNDDOWN('Mould Sizes'!$D9/'Mould Sizes'!$H9,0),0) -> 8 | L9: =ROUND('Mould Sizes'!$K9*'Mould Sizes'!$C9*'Mould Sizes'!$H9*'Mould Sizes'!$I9/1000,0) -> 35392 | M9: =ROUNDDOWN(Table5[[#This Row],[Length (mm)]]/Table5[[#This Row],[Bar Thickness (mm)]]*K9,0) -> 256
B15: Scroll down for cylinders
B18: CIRCULAR (PIPE) MOULDS
B19: Mould Name | C19: Length (mm) | D19: Radius (mm) | E19: Height (N/A) | F19: Max Volume (cubic mm) | G19: Bar Thickness (mm) | H19: Bar Width (N/A) | I19: Waste (mm) | J19: Bar Volume | K19: Loaves | L19: Used Volume | M19: Number of Bars
B20: Short Pipe Guest | C20: 300 | D20: 55 | F20: =ROUND($C20*(PI()*POWER(D20,2)/1000),0) -> 2851 | G20: 20 | I20: 4 | J20: =ROUND($G20*(PI()*POWER(D20,2)/1000),0) -> 190 | K20: =1 -> 1 | L20: =ROUND((Table6[[#This Row],[Length (mm)]]-Table6[[#This Row],[Bar Width (N/A)]])*(PI()*POWER(D20,2)/1000),0) -> 2851 | M20: =IFERROR(ROUND(C20/G20,0),0) -> 15
B21: Long Pipe | C21: 600 | D21: 65 | F21: =ROUND($C21*(PI()*POWER(D21,2)/1000),0) -> 7964 | G21: 20 | I21: 4 | J21: =ROUND($G21*(PI()*POWER(D21,2)/1000),0) -> 265 | K21: =1 -> 1 | L21: =ROUND((Table6[[#This Row],[Length (mm)]]-Table6[[#This Row],[Bar Width (N/A)]])*(PI()*POWER(D21,2)/1000),0) -> 7964 | M21: =IFERROR(ROUND(C21/G21,0),0) -> 30

Sheet Calculations 2 (hidden)
B2: Sample Batch Weight (g) | C2: 500
B3: Volume used in Mould | C3: =VLOOKUP(Recipe!C2,'Mould Sizes'!B4:M34,11,FALSE) -> 1420
B4: Volume of Batch | C4: =F18+G18+H18 -> 758.6321207
B5: Ratio Batch to Mould | C5: =C3/C4 -> 1.871789977
B6: Weight of Batch | C6: =J18+K18+L18 -> 1340
B9: Oil Name | C9: % | D9: SG | E9: Weight of Oil | F9: Oil Volume | G9: Auto Lye | H9: Auto Water | I9: Scaled Oil Volume | J9: Scaled Oil Weight | K9: Scaled Lye Weight | L9: Scaled Water Weight
B10: =Recipe!E4 -> Olive | C10: =IFERROR(IF(B10<>"",VLOOKUP(B10,Recipe!$E4:$F4,2),0),0) -> 0.35 | D10: =IFERROR(IF(ISBLANK(Recipe!E4),0,VLOOKUP(B10,Oils!A:D,4)),0) -> 0.918 | E10: =IF('Calculations 2'!$B10<>0,'Calculations 2'!$C10*$C$2,0) -> 175 | F10: =IFERROR(E10/D10,0) -> 190.6318083 | G10: =IF('Calculations 2'!$C10<>0,VLOOKUP(B10,Oils!A:B,2)*'Calculations 2'!E10,0) -> 23.45 | H10: =VLOOKUP(Recipe!$C$3,'Calculations 2'!$B$23:$E$27,4,FALSE)*G10 -> 46.9 | I10: =ROUND('Calculations 2'!$F10*$C$5,0) -> 357 | J10: =ROUND(IF('Calculations 2'!$B10<>0,'Calculations 2'!$E10*$C$5,0),0) -> 328 | K10: =ROUND(IF('Calculations 2'!$B10<>0,'Calculations 2'!$G10*$C$5,0),0) -> 44 | L10: =ROUND('Calculations 2'!$H10*$C$5,0) -> 88
B11: =Recipe!E5 -> Coconut | C11: =IFERROR(IF(B11<>"",VLOOKUP(B11,Recipe!$E5:$F5,2),0),0) -> 0.2 | D11: =IFERROR(IF(ISBLANK(Recipe!E5),0,VLOOKUP(B11,Oils!A:D,4)),0) -> 0.924 | E11: =IF('Calculations 2'!$B11<>0,'Calculations 2'!$C11*$C$2,0) -> 100 | F11: 108.2251082 | G11: =IF('Calculations 2'!$C11<>0,VLOOKUP(B11,Oils!A:B,2)*'Calculations 2'!E11,0) -> 18.3 | H11: =VLOOKUP(Recipe!$C$3,'Calculations 2'!$B$23:$E$27,4,FALSE)*G11 -> 36.6 | I11: =ROUND('Calculations 2'!$F11*$C$5,0) -> 203 | J11: =ROUND(IF('Calculations 2'!$B11<>0,'Calculations 2'!$E11*$C$5,0),0) -> 187 | K11: =ROUND(IF('Calculations 2'!$B11<>0,'Calculations 2'!$G11*$C$5,0),0) -> 34 | L11: =ROUND('Calculations 2'!$H11*$C$5,0) -> 69
B12: =Recipe!E6 -> Lard | C12: =IFERROR(IF(B12<>"",VLOOKUP(B12,Recipe!$E6:$F6,2),0),0) -> 0.25 | D12: =IFERROR(IF(ISBLANK(Recipe!E6),0,VLOOKUP(B12,Oils!A:D,4)),0) -> 0.925 | E12: =IF('Calculations 2'!$B12<>0,'Calculations 2'!$C12*$C$2,0) -> 125 | F12: 135.1351351 | G12: =IF('Calculations 2'!$C12<>0,VLOOKUP(B12,Oils!A:B,2)*'Calculations 2'!E12,0) -> 17.25 | H12: =VLOOKUP(Recipe!$C$3,'Calculations 2'!$B$23:$E$27,4,FALSE)*G12 -> 34.5 | I12: =ROUND('Calculations 2'!$F12*$C$5,0) -> 253 | J12: =ROUND(IF('Calculations 2'!$B12<>0,'Calculations 2'!$E12*$C$5,0),0) -> 234 | K12: =ROUND(IF('Calculations 2'!$B12<>0,'Calculations 2'!$G12*$C$5,0),0) -> 32 | L12: =ROUND('Calculations 2'!$H12*$C$5,0) -> 65
B13: =Recipe!E7 -> Shea Butter | C13: =IFERROR(IF(B13<>"",VLOOKUP(B13,Recipe!$E7:$F7,2),0),0) -> 0.15 | D13: =IFERROR(IF(ISBLANK(Recipe!E7),0,VLOOKUP(B13,Oils!A:D,4)),0) -> 0.9 | E13: =IF('Calculations 2'!$B13<>0,'Calculations 2'!$C13*$C$2,0) -> 75 | F13: 83.33333333 | G13: =IF('Calculations 2'!$C13<>0,VLOOKUP(B13,Oils!A:B,2)*'Calculations 2'!E13,0) -> 9.6 | H13: =VLOOKUP(Recipe!$C$3,'Calculations 2'!$B$23:$E$27,4,FALSE)*G13 -> 19.2 | I13: =ROUND('Calculations 2'!$F13*$C$5,0) -> 156 | J13: =ROUND(IF('Calculations 2'!$B13<>0,'Calculations 2'!$E13*$C$5,0),0) -> 140 | K13: =ROUND(IF('Calculations 2'!$B13<>0,'Calculations 2'!$G13*$C$5,0),0) -> 18 | L13: =ROUND('Calculations 2'!$H13*$C$5,0) -> 36
B14: =Recipe!E8 -> Castor | C14: =IFERROR(IF(B14<>"",VLOOKUP(B14,Recipe!$E8:$F8,2),0),0) -> 0.05 | D14: =IFERROR(IF(ISBLANK(Recipe!E8),0,VLOOKUP(B14,Oils!A:D,4)),0) -> 0.965 | E14: =IF('Calculations 2'!$B14<>0,'Calculations 2'!$C14*$C$2,0) -> 25 | F14: 25.90673575 | G14: =IF('Calculations 2'!$C14<>0,VLOOKUP(B14,Oils!A:B,2)*'Calculations 2'!E14,0) -> 3.2 | H14: =VLOOKUP(Recipe!$C$3,'Calculations 2'!$B$23:$E$27,4,FALSE)*G14 -> 6.4 | I14: =ROUND('Calculations 2'!$F14*$C$5,0) -> 48 | J14: =ROUND(IF('Calculations 2'!$B14<>0,'Calculations 2'!$E14*$C$5,0),0) -> 47 | K14: =ROUND(IF('Calculations 2'!$B14<>0,'Calculations 2'!$G14*$C$5,0),0) -> 6 | L14: =ROUND('Calculations 2'!$H14*$C$5,0) -> 12
B15: =Recipe!E9 -> 0 | C15: =IFERROR(IF(B15<>"",VLOOKUP(B15,Recipe!$E9:$F9,2),0),0) -> 0 | D15: =IFERROR(IF(ISBLANK(Recipe!E9),0,VLOOKUP(B15,Oils!A:D,4)),0) -> 0 | E15: =IF('Calculations 2'!$B15<>0,'Calculations 2'!$C15*$C$2,0) -> 0 | F15: 0 | G15: =IF('Calculations 2'!$C15<>0,VLOOKUP(B15,Oils!A:B,2)*'Calculations 2'!E15,0) -> 0 | H15: =VLOOKUP(Recipe!$C$3,'Calculations 2'!$B$23:$E$27,4,FALSE)*G15 -> 0 | I15: =ROUND('Calculations 2'!$F15*$C$5,0) -> 0 | J15: =ROUND(IF('Calculations 2'!$B15<>0,'Calculations 2'!$E15*$C$5,0),0) -> 0 | K15: =ROUND(IF('Calculations 2'!$B15<>0,'Calculations 2'!$G15*$C$5,0),0) -> 0 | L15: =ROUND('Calculations 2'!$H15*$C$5,0) -> 0
B16: =Recipe!E10 -> 0 | C16: =IFERROR(IF(B16<>"",VLOOKUP(B16,Recipe!$E10:$F10,2),0),0) -> 0 | D16: =IFERROR(IF(ISBLANK(Recipe!E10),0,VLOOKUP(B16,Oils!A:D,4)),0) -> 0 | E16: =IF('Calculations 2'!$B16<>0,'Calculations 2'!$C16*$C$2,0) -> 0 | F16: 0 | G16: =IF('Calculations 2'!$C16<>0,VLOOKUP(B16,Oils!A:B,2)*'Calculations 2'!E16,0) -> 0 | H16: =VLOOKUP(Recipe!$C$3,'Calculations 2'!$B$23:$E$27,4,FALSE)*G16 -> 0 | I16: =ROUND('Calculations 2'!$F16*$C$5,0) -> 0 | J16: =ROUND(IF('Calculations 2'!$B16<>0,'Calculations 2'!$E16*$C$5,0),0) -> 0 | K16: =ROUND(IF('Calculations 2'!$B16<>0,'Calculations 2'!$G16*$C$5,0),0) -> 0 | L16: =ROUND('Calculations 2'!$H16*$C$5,0) -> 0
B17: =Recipe!E11 -> 0 | C17: =IFERROR(IF(B17<>"",VLOOKUP(B17,Recipe!$E11:$F11,2),0),0) -> 0 | D17: =IFERROR(IF(ISBLANK(Recipe!E11),0,VLOOKUP(B17,Oils!A:D,4)),0) -> 0 | E17: =IF('Calculations 2'!$B17<>0,'Calculations 2'!$C17*$C$2,0) -> 0 | F17: 0 | G17: =IF('Calculations 2'!$C17<>0,VLOOKUP(B17,Oils!A:B,2)*'Calculations 2'!E17,0) -> 0 | H17: =VLOOKUP(Recipe!$C$3,'Calculations 2'!$B$23:$E$27,4,FALSE)*G17 -> 0 | I17: =ROUND('Calculations 2'!$F17*$C$5,0) -> 0 | J17: =ROUND(IF('Calculations 2'!$B17<>0,'Calculations 2'!$E17*$C$5,0),0) -> 0 | K17: =ROUND(IF('Calculations 2'!$B17<>0,'Calculations 2'!$G17*$C$5,0),0) -> 0 | L17: =ROUND('Calculations 2'!$H17*$C$5,0) -> 0
C18: =IF('Calculations 2'!$B18<>0,VLOOKUP('Calculations 2'!$B18,Recipe!$E$4:$F$11,2),0) -> 0 | D18: Totals | E18: =SUM(E10:E17) -> 500 | F18: =SUM(F10:F17) -> 543.2321207 | G18: =SUM(G10:G17) -> 71.8 | H18: =SUM(H10:H17) -> 143.6 | I18: =ROUND('Calculations 2'!$F18*$C$5,0) -> 1017 | J18: =SUM(J10:J17) -> 936 | K18: =ROUND(SUM(K10:K17),0) -> 134 | L18: =ROUND(SUM(L10:L17),0) -> 270
B22: Column3 | C22: Water | D22: Lye | E22: Ratio | F22: Column1 | G22: Column2 | H22: Column3
B23: 3:1, Full Water | C23: 75 | D23: =100-C23 -> 25 | E23: =ROUNDDOWN(C23/D23,1) -> 3 | F23: 1 | G23: =CONCATENATE(Table4812[[#This Row],[Ratio]],":",Table4812[[#This Row],[Column1]]) -> 3:1
B24: 2.5:1, Light Discount | C24: 72 | D24: =100-C24 -> 28 | E24: =ROUNDDOWN(C24/D24,1) -> 2.5 | F24: 1 | G24: =CONCATENATE(Table4812[[#This Row],[Ratio]],":",Table4812[[#This Row],[Column1]]) -> 2.5:1
B25: 2:1, Moderate Discount | C25: 67 | D25: =100-C25 -> 33 | E25: =ROUNDDOWN(C25/D25,1) -> 2 | F25: 1 | G25: =CONCATENATE(Table4812[[#This Row],[Ratio]],":",Table4812[[#This Row],[Column1]]) -> 2:1
B26: 1.5:1, Heavy Discount | C26: 60 | D26: =100-C26 -> 40 | E26: =ROUNDDOWN(C26/D26,1) -> 1.5 | F26: 1 | G26: =CONCATENATE(Table4812[[#This Row],[Ratio]],":",Table4812[[#This Row],[Column1]]) -> 1.5:1
B27: 1:1, Very Heavy Discount | C27: 50 | D27: =100-C27 -> 50 | E27: =ROUNDDOWN(C27/D27,1) -> 1 | F27: 1 | G27: =CONCATENATE(Table4812[[#This Row],[Ratio]],":",Table4812[[#This Row],[Column1]]) -> 1:1

Sheet Batches (hidden)
B1: Batches
B2: Made | C2: No. of Bars | D2: Fragrance | E2: Batch OILS cost | F2: FRAGRANCE COST | G2: Sundries | H2: Cost per bar | I2: Markup | J2: SELL Price | K2: PROFIT | L2: Date Ready
B3: 2023-06-13 | C3: 11 | D3: Blackberry Sage | E3: 9.34 | F3: 7.5 | H3: =IFERROR((E3+Table10[[#This Row],[FRAGRANCE COST]])/C3,0) -> 1.530909091 | I3: 4 | J3: =IFERROR(ROUNDUP((H3*I3),0),0) -> 7 | K3: =(Table10[[#This Row],[SELL Price]]-Table10[[#This Row],[Cost per bar]])*Table10[[#This Row],[No. of Bars]] -> 60.16 | L3: =IF(Table10[[#This Row],[Made]]>0,Table10[[#This Row],[Made]]+28,0) -> 2023-07-11
B4: 2023-08-05 | C4: 14 | D4: Mango | E4: 16.2425 | F4: 3.5 | H4: =IFERROR((E4+Table10[[#This Row],[FRAGRANCE COST]])/C4,0) -> 1.410178571 | I4: 4 | J4: 6 | K4: =(Table10[[#This Row],[SELL Price]]-Table10[[#This Row],[Cost per bar]])*Table10[[#This Row],[No. of Bars]] -> 64.2575 | L4: =IF(Table10[[#This Row],[Made]]>0,Table10[[#This Row],[Made]]+28,0) -> 2023-09-02
B5: 2023-08-24 | C5: 20 | D5: Coconut | E5: 11.7413 | F5: 5.234742857 | G5: 0.93 | H5: 0.8953021429 | I5: 3 | J5: 3 | K5: =(Table10[[#This Row],[SELL Price]]-Table10[[#This Row],[Cost per bar]])*Table10[[#This Row],[No. of Bars]] -> 42.09395714 | L5: =IF(Table10[[#This Row],[Made]]>0,Table10[[#This Row],[Made]]+28,0) -> 2023-09-21
B6: 2023-08-24 | C6: 10 | D6: Christmas Kitchen | E6: 2.5068 | F6: 3.281 | G6: 0.465 | H6: 0.62528 | I6: 4 | J6: 3 | K6: =(Table10[[#This Row],[SELL Price]]-Table10[[#This Row],[Cost per bar]])*Table10[[#This Row],[No. of Bars]] -> 23.7472 | L6: =IF(Table10[[#This Row],[Made]]>0,Table10[[#This Row],[Made]]+28,0) -> 2023-09-21
B7: 2023-08-24 | C7: 10 | D7: Cedarwood | E7: 7.7424 | F7: 3.1488 | G7: 0.75 | H7: 1.16412 | I7: 4 | J7: 5 | K7: =(Table10[[#This Row],[SELL Price]]-Table10[[#This Row],[Cost per bar]])*Table10[[#This Row],[No. of Bars]] -> 38.3588 | L7: =IF(Table10[[#This Row],[Made]]>0,Table10[[#This Row],[Made]]+28,0) -> 2023-09-21
B8: 2023-09-26 | C8: 9 | D8: Christmas Kitchen | E8: 7.845923333 | F8: 3.1688 | G8: 0.4664 | H8: 1.27568037 | I8: 4 | J8: =IFERROR(ROUNDUP((H8*I8),0),0) -> 6 | K8: =(Table10[[#This Row],[SELL Price]]-Table10[[#This Row],[Cost per bar]])*Table10[[#This Row],[No. of Bars]] -> 42.51887667 | L8: =IF(Table10[[#This Row],[Made]]>0,Table10[[#This Row],[Made]]+28,0) -> 2023-10-24
B9: 2023-09-27 | C9: 9 | D9: Patchouli EO | E9: 11.13776 | F9: 0.96 | G9: 0.6464 | H9: 1.416017778 | I9: 4 | J9: =IFERROR(ROUNDUP((H9*I9),0),0) -> 6 | K9: =(Table10[[#This Row],[SELL Price]]-Table10[[#This Row],[Cost per bar]])*Table10[[#This Row],[No. of Bars]] -> 41.25584 | L9: =IF(Table10[[#This Row],[Made]]>0,Table10[[#This Row],[Made]]+28,0) -> 2023-10-25
B10: 2023-09-27 | C10: 9 | D10: Patchouli & Lavender EO | E10: 11.13776 | F10: 6.36 | G10: 0 | H10: 1.944195556 | I10: 4 | J10: =IFERROR(ROUNDUP((H10*I10),0),0) -> 8 | K10: =(Table10[[#This Row],[SELL Price]]-Table10[[#This Row],[Cost per bar]])*Table10[[#This Row],[No. of Bars]] -> 54.50224 | L10: =IF(Table10[[#This Row],[Made]]>0,Table10[[#This Row],[Made]]+28,0) -> 2023-10-25

Sheet Fragrance (hidden)
A1: Fragrance Name | B1: Type | C1: Brand | D1: Supplier | E1: Package Size (ml) | F1: Package Cost | G1: Cost / unit | H1: Rec. %
A2: Black Raspberry & Vanilla | B2: Fragrance Oil | C2: Luxaroma | D2: Eroma | E2: 520 | F2: 27.05 | G2: =IF(E2>0,F2/E2,0) -> 0.05201923077 | H2: 0.05
A3: Blackberry Sage | B3: Fragrance Oil | C3: Bramble Berry | D3: Aussie Soap Supplies | E3: 100 | F3: 18.75 | G3: =IF(E3>0,F3/E3,0) -> 0.1875 | H3: 0.05
A4: Cedarwood | B4: Essential Oil | C4: Escentials | D4: Escentials | E4: 500 | F4: 41 | G4: =IF(E4>0,F4/E4,0) -> 0.082 | H4: 0.05
A5: Christmas Cedar | B5: Fragrance Oil | C5: Luxaroma | D5: Eroma | E5: 520 | F5: 29.53 | G5: =IF(E5>0,F5/E5,0) -> 0.05678846154 | H5: 0.05
A6: Christmas Kitchen | B6: Fragrance Oil | C6: Escentials | D6: Escentials | E6: 100 | F6: 8.5 | G6: =IF(E6>0,F6/E6,0) -> 0.085 | H6: 0.05
A7: Clary Sage | B7: Essential Oil | C7: Escentials | D7: Escentials | E7: 100 | F7: 35 | G7: =IF(E7>0,F7/E7,0) -> 0.35 | H7: 0.05
A8: Coconut | B8: Fragrance Oil | C8: Luxaroma | D8: Eroma | E8: 105 | F8: 7.92 | G8: =IF(E8>0,F8/E8,0) -> 0.07542857143 | H8: 0.05
A9: Coffee (USA) | B9: Fragrance Oil | C9: Escentials | D9: Escentials | E9: 100 | F9: 8.5 | G9: =IF(E9>0,F9/E9,0) -> 0.085 | H9: 0.05
A10: Country Kitchen | B10: Fragrance Oil | C10: Bramble Berry | D10: Aussie Soap Supplies | E10: 100 | F10: 16 | G10: =IF(E10>0,F10/E10,0) -> 0.16 | H10: 0.05
A11: Eucalyptus | B11: Essential Oil | C11: Aldi | D11: Aldi | E11: 100 | F11: 6.5 | G11: =IF(E11>0,F11/E11,0) -> 0.065 | H11: 0.05
A12: Frangipani | B12: Fragrance Oil | C12: Escentials | D12: Escentials | E12: 100 | F12: 8.5 | G12: =IF(E12>0,F12/E12,0) -> 0.085 | H12: 0.05
A13: Ginger Ale | B13: Fragrance Oil | C13: Bramble Berry | D13: Aussie Soap Supplies | E13: 100 | F13: 16.5 | G13: =IF(E13>0,F13/E13,0) -> 0.165 | H13: 0.05
A14: Green Apple (USA) | B14: Fragrance Oil | C14: Escentials | D14: Escentials | E14: 100 | F14: 8.5 | G14: =IF(E14>0,F14/E14,0) -> 0.085 | H14: 0.05
A15: Honey almond | B15: Fragrance Oil | C15: Escentials | D15: Escentials | E15: 100 | F15: 8.5 | G15: =IF(E15>0,F15/E15,0) -> 0.085 | H15: 0.05
A16: Lavender | B16: Essential Oil | C16: Ahimsa | D16: Ahimsa | E16: 100 | F16: 27 | G16: =IF(E16>0,F16/E16,0) -> 0.27 | H16: 0.04
A17: Lemongrass Cochin | B17: Essential Oil | C17: Escentials | D17: Escentials | E17: 100 | F17: 8.5 | G17: =IF(E17>0,F17/E17,0) -> 0.085 | H17: 0.05
A18: Mango | B18: Fragrance Oil | C18: Escentials | D18: Escentials | E18: 100 | F18: 7 | G18: =IF(E18>0,F18/E18,0) -> 0.07 | H18: 0.05
A19: Patchouli | B19: Essential Oil | C19: New Directions | D19: New Directions | E19: 500 | F19: 24 | G19: =IF(E19>0,F19/E19,0) -> 0.048 | H19: 0.04
A20: Raspberry Cream USA | B20: Fragrance Oil | C20: Escentials | D20: Escentials | E20: 100 | F20: 7 | G20: =IF(E20>0,F20/E20,0) -> 0.07 | H20: 0.05
A21: Relaxation Blend | B21: Essential Oil | C21: New Directions | D21: New Directions | E21: 100 | F21: 32 | G21: =IF(E21>0,F21/E21,0) -> 0.32 | H21: 0.05
A22: Sandalwood (Mysore) | B22: Essential Oil | C22: Escentials | D22: Escentials | E22: 100 | F22: 9.8 | G22: =IF(E22>0,F22/E22,0) -> 0.098 | H22: 0.05
A23: Sandalwood/Coconut | B23: Fragrance Oil | C23: Luxaroma | D23: Eroma | E23: 105 | F23: 8.73 | G23: =IF(E23>0,F23/E23,0) -> 0.08314285714 | H23: 0.05
A24: Sweet Orange | B24: Essential Oil | C24: Escentials | D24: Escentials | E24: 1000 | F24: 36 | G24: =IF(E24>0,F24/E24,0) -> 0.036 | H24: 0.05
A25: Tea Tree | B25: Essential Oil | C25: Aldi | D25: Aldi | E25: 100 | F25: 6.5 | G25: =IF(E25>0,F25/E25,0) -> 0.065 | H25: 0.05

Sheet Oils (hidden)
A1: Fat/Oil | B1: Sodium Hydroxide | C1: Potassium Hydroxide | D1: Specific | E1: Package Price | F1: Package Size | G1: Cost / g
B2: NaOH | C2: KOH | D2: Gravity | F2: g or ml
A3: Apricot Kernel | B3: 0.135 | C3: =B3*(56.1/39.99) -> 0.1893848462 | D3: 0.94 | G3: =IFERROR(IF(ISBLANK(E3),,E3/F3),0) -> 0
A4: Avocado | B4: 0.133 | C4: 0.1865791448 | D4: 0.915 | G4: =IFERROR(IF(ISBLANK(E4),,E4/F4),0) -> 0
A5: Avocado Butter | B5: 0.1339 | C5: 0.1878417104 | D5: 0.904 | G5: 0
A6: Babassu, brazil nut | B6: 0.176 | C6: 0.2469017254 | D6: 0.897 | G6: 0
A7: Beeswax | B7: 0.069 | C7: 0.09679669917 | D7: 0.9658505958 | G7: 0
A8: Borage | B8: 0.1357 | C8: 0.1903668417 | D8: 0.9227 | G8: 0
A9: Brazil Nut | B9: 0.175 | C9: 0.2454988747 | D9: 0.897 | G9: 0
A10: Camellia | B10: 0.1362 | C10: 0.1910682671 | D10: 0.915 | G10: 0
A11: Candelilla Wax | B11: 0.0381 | C11: 0.05344861215 | D11: 0.984 | G11: 0
A12: Canola | B12: 0.133 | C12: 0.1865791448 | D12: 0.9177584499 | E12: 18 | F12: 4000 | G12: 0.0045
A13: Castor | B13: 0.128 | C13: 0.1795648912 | D13: 0.965 | E13: 45.5 | F13: 5000 | G13: 0.0091
A14: Chicken Fat | B14: 0.1389 | C14: 0.194855964 | D14: 0.924 | G14: 0
A15: Cocoa Butter | B15: 0.137 | C15: 0.1921905476 | D15: 0.968 | E15: 36 | F15: 1000 | G15: 0.036
A16: Coconut | B16: 0.183 | C16: 0.2567216804 | D16: 0.924 | E16: 29 | F16: 5000 | G16: 0.0058
A17: Cottonseed | B17: 0.1386 | C17: 0.1944351088 | D17: 0.917 | G17: 0
A18: Evening Primrose | B18: 0.1357 | C18: 0.1903668417 | D18: 0.914 | G18: 0
A19: Flaxseed | B19: 0.1357 | C19: 0.1903668417 | D19: 0.915 | G19: 0
A20: Goose Fat | B20: 0.1369 | C20: 0.1920502626 | D20: 0.9287795667 | G20: 0
A21: Grapeseed | B21: 0.1265 | C21: 0.1774606152 | D21: 0.9267757273 | G21: 0
A22: Hazelnut | B22: 0.1356 | C22: 0.1902265566 | D22: 0.9187603696 | G22: 0
A23: Hemp Seed | B23: 0.1345 | C23: 0.1886834209 | D23: 0.9267757273 | G23: 0
A24: Jojoba (Wax) | B24: 0.069 | C24: 0.09679669917 | D24: 1 | G24: 0
A25: Lanolin | B25: 0.0741 | C25: 0.1039512378 | D25: 0.938 | G25: 0
A26: Lard | B26: 0.138 | C26: 0.1935933983 | D26: 0.925 | E26: 4.99 | F26: 250 | G26: 0.01996
A27: Linseed | B27: 0.1357 | C27: 0.1903668417 | D27: 0.915 | G27: 0
A28: Macadamia | B28: 0.139 | C28: 0.1949962491 | D28: 0.904 | G28: 0
A29: Mango Butter | B29: 0.1371 | C29: 0.1923308327 | D29: 0.903 | E29: 34 | F29: 1000 | G29: 0.034
A30: Meadowfoam | B30: 0.1207 | C30: 0.169324081 | D30: 0.91 | G30: 0
A31: Mink | B31: 0.14 | C31: 0.1963990998 | D31: 0.9122 | G31: 0
A32: Mustard | B32: 0.1241 | C32: 0.1740937734 | D32: 0.915 | G32: 0
A33: Neat's foot | B33: 0.1359 | C33: 0.1906474119 | D33: 0.9167565302 | G33: 0
A34: Neem | B34: 0.1387 | C34: 0.1945753938 | D34: 0.921 | G34: 0
A35: Not Used | B35: 0 | C35: 0 | D35: 0 | G35: 0
A36: Nutmeg Butter | B36: 0.116 | C36: =B36*(56.1/39.99) -> 0.1627306827 | D36: 0.971862114 | G36: 0
A37: Olive Pomace | B37: 0.134 | C37: 0.1879819955 | D37: 0.92 | E37: 14 | F37: 4000 | G37: 0.0035
A38: Olive | B38: 0.134 | C38: 0.1879819955 | D38: 0.918 | E38: 24 | F38: 4000 | G38: 0.006
A39: Palm | B39: 0.142 | C39: 0.1992048012 | D39: 0.915 | E39: 24 | F39: 4000 | G39: 0.006
A40: Palm Kernel | B40: 0.179 | C40: 0.2511102776 | D40: 0.87 | G40: 0
A41: Palm, Stearic | B41: 0.141 | C41: 0.1978019505 | D41: 0.94 | G41: 0
A42: Peach Kernel | B42: 0.137 | C42: 0.1921905476 | D42: 0.9158 | G42: 0
A43: Peanut | B43: 0.136 | C43: 0.1907876969 | D43: 0.914 | G43: 0
A44: Perilla | B44: 0.1369 | C44: 0.1920502626 | D44: 0.93 | G44: 0
A45: Pistachio Nut | B45: 0.1328 | C45: 0.1862985746 | D45: 0.913 | G45: 0
A46: Poppyseed | B46: 0.1383 | C46: 0.1940142536 | D46: 0.925 | G46: 0
A47: Pumpkinseed | B47: 0.1431 | C47: 0.200747937 | D47: 0.924 | G47: 0
A48: Rapeseed | B48: 0.124 | C48: 0.1739534884 | D48: 0.915 | G48: 0
A49: Rice Bran | B49: 0.128 | C49: 0.1795648912 | D49: 0.918 | E49: 20 | F49: 3000 | G49: 0.006666666667
A50: Rose Hip Seed | B50: 0.1378 | C50: 0.1933128282 | D50: 0.92 | G50: 0
A51: Safflower | B51: 0.137 | C51: 0.1921905476 | D51: 0.927777647 | G51: 0
A52: Sal Butter | B52: 0.1306 | C52: 0.1832123031 | D52: 0.897 | G52: 0
A53: Sesame Seed | B53: 0.133 | C53: 0.1865791448 | D53: 0.920764209 | G53: 0
A54: Shea Butter | B54: 0.128 | C54: 0.1795648912 | D54: 0.9 | E54: 19 | F54: 1000 | G54: 0.019
A55: Soybean | B55: 0.135 | C55: 0.1893848462 | D55: 0.927 | G55: 0
A56: Stearic Acid | B56: 0.1412 | C56: 0.1980825206 | D56: 0.941 | G56: 0
A57: Sunflower Seed | B57: 0.134 | C57: 0.1879819955 | D57: 0.923 | G57: 0
A58: Sweet Almond | B58: 0.136 | C58: 0.1907876969 | D58: 0.9488 | E58: 20 | F58: 1000 | G58: 0.02
A59: Tamanu | B59: 0.1357 | C59: 0.1903668417 | D59: 0.91 | G59: 0
A60: Walnut | B60: 0.1353 | C60: 0.1898057014 | D60: 0.927777647 | G60: 0
A61: Wheatgerm | B61: 0.131 | C61: 0.1837734434 | D61: 0.925 | G61: 0
A62: Citric Acid (1.5%) | B62: 0.624 | C62: 0.8753788447 | E62: 4.19 | F62: 180 | G62: 0.02327777778
C63: 0 | G63: 0
C64: 0 | G64: 0
C65: 0 | G65: 0
C66: 0 | G66: 0
C67: 0 | G67: 0
C68: 0 | G68: =IFERROR(IF(ISBLANK(E68),,E68/F68),0) -> 0
C69: 0 | G69: 0
C70: 0 | G70: 0
C71: 0 | G71: 0
C72: 0 | G72: 0
C73: 0 | G73: 0
C74: 0 | G74: 0
C75: 0 | G75: 0
C76: 0 | G76: 0
C77: 0 | G77: 0
C78: 0 | G78: 0
C79: 0 | G79: 0
C80: 0 | G80: 0
C81: 0 | G81: 0
C82: 0 | G82: 0
C83: 0 | G83: 0
C84: 0 | G84: 0
C85: 0 | G85: 0
C86: 0 | G86: 0
C87: 0 | G87: 0
C88: 0 | G88: 0
C89: 0 | G89: 0
C90: 0 | G90: 0
C91: 0 | G91: 0
C92: 0 | G92: 0
C93: 0 | G93: 0
C94: 0 | G94: 0
C95: 0 | G95: 0
C96: 0 | G96: 0
C97: 0 | G97: 0
C98: 0 | G98: 0
C99: 0 | G99: 0
C100: =B100*(56.1/39.99) -> 0 | G100: 0

Sheet Colourants (hidden)
A1: Colours | B1: Type | C1: Brand | D1: Supplier | E1: Package Weight (g) | F1: Package Cost | G1: Cost / g
A2: Blue Oxide | B2: Oxide | C2: Aussie Soap Supplies | D2: Aussie Soap Supplies | E2: 40 | F2: 8 | G2: =IF(ISBLANK(A2),,F2/E2) -> 0.2
A3: Fizzy Lemonade | B3: Neon | C3: Aussie Soap Supplies | D3: Aussie Soap Supplies | E3: 20 | F3: 7.5 | G3: 0.375
A4: Fuchsia | B4: Neon | C4: Aussie Soap Supplies | D4: Aussie Soap Supplies | E4: 20 | F4: 7.5 | G4: 0.375
A5: UltraViolet Blue | B5: Neon | C5: Aussie Soap Supplies | D5: Aussie Soap Supplies | E5: 20 | F5: 7.5 | G5: 0.375
A6: Tangerine Wow | B6: Neon | C6: Aussie Soap Supplies | D6: Aussie Soap Supplies | E6: 20 | F6: 7.5 | G6: 0.375
A7: Green Oxide | B7: Oxide | C7: Aussie Soap Supplies | D7: Aussie Soap Supplies | E7: 40 | F7: 8 | G7: 0.2
A8: Titanium Dioxide | B8: Oxide | C8: Escentials | D8: Escentials | E8: 100 | F8: 9 | G8: 0.09
A9: Liquid Dye Soap - Red | B9: Water Soluble | C9: Eroma | D9: Eroma | E9: 25 | F9: 5.83 | G9: 0.2332
A10: Liquid Dye Soap - Yellow | B10: Water Soluble | C10: Eroma | D10: Eroma | E10: 25 | F10: 5.83 | G10: 0.2332
A11: Liquid Dye Soap - Violet | B11: Water Soluble | C11: Eroma | D11: Eroma | E11: 25 | F11: 5.83 | G11: 0.2332
A12: Black Oxide | B12: Oxide | C12: Aussie Soap Supplies | D12: Aussie Soap Supplies | E12: 40 | F12: 8 | G12: 0.2
A13: Pearlescent Green | B13: Mica | C13: Amazon | D13: Amazon | E13: 10 | F13: 1.33 | G13: =IF(ISBLANK(A13),,F13/E13) -> 0.133
A14: Pearlescent Blue | B14: Mica | C14: Amazon | D14: Amazon | E14: 10 | F14: 1.33 | G14: =IF(ISBLANK(A14),,F14/E14) -> 0.133
A15: Pearlescent Black | B15: Mica | C15: Amazon | D15: Amazon | E15: 10 | F15: 1.33 | G15: =IF(ISBLANK(A15),,F15/E15) -> 0.133

Sheet Lye (hidden)
A1: Lye | B1: Package Size | C1: Package Cost | D1: Cost / unit
A2: Sodium Hydroxide | B2: 5000 | C2: 35.2 | D2: =IFERROR(C2/B2,0) -> 0.00704
A3: Potassium Hydroxide | B3: 500 | C3: 25.85 | D3: 0.0517

Sheet Oils by Fatty Acids List (hidden)
A1: Oil Name | B1: Lauric | C1: Myristic | D1: Palmitic | E1: Stearic | F1: Ricinoleic | G1: Oleic | H1: Linoleic | I1: Linolenic
A2: Sweet Almond | B2: 0 | C2: 0 | D2: 7 | E2: 0 | F2: 0 | G2: 71 | H2: 18 | I2: 0
A3: Apricot Kernel | B3: 0 | C3: 0 | D3: 6 | E3: 0 | F3: 0 | G3: 66 | H3: 27 | I3: 0
A4: Avocado | B4: 0 | C4: 0 | D4: 20 | E4: 2 | F4: 0 | G4: 58 | H4: 12 | I4: 0
A5: Avocado Butter | B5: 0 | C5: 0 | D5: 21 | E5: 10 | F5: 0 | G5: 53 | H5: 6 | I5: 2
A6: Babassu, brazil nut | B6: 50 | C6: 20 | D6: 11 | E6: 4 | F6: 0 | G6: 10 | H6: 0 | I6: 0
A7: Beeswax | B7: 0 | C7: 0 | D7: 0 | E7: 0 | F7: 0 | G7: 0 | H7: 0 | I7: 0
A8: Borage | B8: 0 | C8: 0 | D8: 10 | E8: 4 | F8: 0 | G8: 20 | H8: 43 | I8: 5
A9: Brazil Nut | B9: 0 | C9: 0 | D9: 13 | E9: 11 | F9: 0 | G9: 39 | H9: 36 | I9: 0
A10: Camelina | B10: 0 | C10: 0 | D10: 6 | E10: 2 | F10: 0 | G10: 24 | H10: 19 | I10: 45
A11: Camellia | B11: 0 | C11: 0 | D11: 9 | E11: 2 | F11: 0 | G11: 77 | H11: 8 | I11: 0
A12: Candelilla Wax | B12: 0 | C12: 0 | D12: 0 | E12: 0 | F12: 0 | G12: 0 | H12: 0 | I12: 0
A13: Canola | B13: 0 | C13: 0 | D13: 4 | E13: 2 | F13: 0 | G13: 61 | H13: 21 | I13: 9
A14: Castor | B14: 0 | C14: 0 | D14: 0 | E14: 0 | F14: 90 | G14: 4 | H14: 4 | I14: 0
A15: Chicken Fat | B15: 0 | C15: 1 | D15: 25 | E15: 7 | F15: 0 | G15: 38 | H15: 21 | I15: 0
A16: Cocoa Butter | B16: 0 | C16: 0 | D16: 28 | E16: 33 | F16: 0 | G16: 35 | H16: 3 | I16: 0
A17: Coconut | B17: 48 | C17: 19 | D17: 9 | E17: 3 | F17: 0 | G17: 8 | H17: 2 | I17: 0
A18: Corn | B18: 0 | C18: 0 | D18: 12 | E18: 2 | F18: 0 | G18: 32 | H18: 51 | I18: 1
A19: Cottonseed | B19: 0 | C19: 0 | D19: 13 | E19: 13 | F19: 0 | G19: 18 | H19: 52 | I19: 1
A20: Emu | B20: 0 | C20: 0 | D20: 23 | E20: 9 | F20: 0 | G20: 47 | H20: 8 | I20: 0
A21: Evening Primrose | B21: 0 | C21: 0 | D21: 0 | E21: 0 | F21: 0 | G21: 0 | H21: 80 | I21: 9
A22: Flaxseed | B22: 0 | C22: 0 | D22: 6 | E22: 3 | F22: 0 | G22: 27 | H22: 13 | I22: 50
A23: Goose Fat | B23: 0 | C23: 0 | D23: 21 | E23: 6 | F23: 0 | G23: 54 | H23: 10 | I23: 0
A24: Grapeseed | B24: 0 | C24: 0 | D24: 8 | E24: 4 | F24: 0 | G24: 20 | H24: 68 | I24: 0
A25: Hazelnut | B25: 0 | C25: 0 | D25: 5 | E25: 3 | F25: 0 | G25: 75 | H25: 10 | I25: 0
A26: Hemp Seed | B26: 0 | C26: 0 | D26: 6 | E26: 2 | F26: 0 | G26: 12 | H26: 57 | I26: 21
A27: Illipe Butter | B27: 0 | C27: 0 | D27: 17 | E27: 45 | F27: 0 | G27: 35 | H27: 0 | I27: 0
A28: Jojoba (Wax) | B28: 0 | C28: 0 | D28: 0 | E28: 0 | F28: 0 | G28: 12 | H28: 0 | I28: 0
A29: Kokum Butter | B29: 0 | C29: 0 | D29: 4 | E29: 56 | F29: 0 | G29: 36 | H29: 1 | I29: 0
A30: Kukui Nut | B30: 0 | C30: 0 | D30: 6 | E30: 2 | F30: 0 | G30: 20 | H30: 42 | I30: 29
A31: Lanolin | B31: 0 | C31: 0 | D31: 0 | E31: 0 | F31: 0 | G31: 0 | H31: 0 | I31: 0
A32: Lard | B32: 0 | C32: 1 | D32: 28 | E32: 13 | F32: 0 | G32: 46 | H32: 6 | I32: 0
A33: Linseed | B33: 0 | C33: 0 | D33: 6 | E33: 3 | F33: 0 | G33: 27 | H33: 13 | I33: 50
A34: Macadamia Oil | B34: 0 | C34: 0 | D34: 9 | E34: 5 | F34: 0 | G34: 59 | H34: 2 | I34: 0
A35: Mango Seed Oil | B35: 0 | C35: 0 | D35: 8 | E35: 27 | F35: 0 | G35: 52 | H35: 8 | I35: 1
A36: Mango Butter | B36: 0 | C36: 0 | D36: 7 | E36: 42 | F36: 0 | G36: 45 | H36: 3 | I36: 0
A37: Meadowfoam | B37: 0 | C37: 0 | D37: 0 | E37: 0 | F37: 0 | G37: 0 | H37: 0 | I37: 0
A38: Mink | B38: 0 | C38: 0 | D38: 0 | E38: 0 | F38: 0 | G38: 0 | H38: 0 | I38: 0
A39: Mustard | B39: 0 | C39: 0 | D39: 2 | E39: 2 | F39: 0 | G39: 18 | H39: 14 | I39: 9
A40: Neat's foot | B40: 0 | C40: 0 | D40: 0 | E40: 0 | F40: 0 | G40: 0 | H40: 0 | I40: 0
A41: Neem | B41: 0 | C41: 2 | D41: 21 | E41: 16 | F41: 0 | G41: 46 | H41: 12 | I41: 0
A42: Nutmeg Butter | B42: 3 | C42: 83 | D42: 4 | E42: 0 | F42: 0 | G42: 5 | H42: 0 | I42: 0
A43: Olive Pomace | B43: 0 | C43: 0 | D43: 14 | E43: 3 | F43: 0 | G43: 69 | H43: 12 | I43: 2
A44: Olive | B44: 0 | C44: 0 | D44: 14 | E44: 3 | F44: 0 | G44: 69 | H44: 12 | I44: 1
A45: Ostrich | B45: 3 | C45: 1 | D45: 26 | E45: 6 | F45: 0 | G45: 37 | H45: 17 | I45: 3
A46: Palm | B46: 0 | C46: 1 | D46: 44 | E46: 5 | F46: 0 | G46: 39 | H46: 10 | I46: 0
A47: Palm Kernel | B47: 49 | C47: 16 | D47: 8 | E47: 2 | F47: 0 | G47: 15 | H47: 3 | I47: 0
A48: Peach Kernel | B48: 0 | C48: 0 | D48: 6 | E48: 2 | F48: 0 | G48: 65 | H48: 25 | I48: 1
A49: Peanut | B49: 0 | C49: 0 | D49: 8 | E49: 3 | F49: 0 | G49: 56 | H49: 26 | I49: 0
A50: Perilla | B50: 0 | C50: 0 | D50: 6 | E50: 2 | F50: 0 | G50: 15 | H50: 16 | I50: 56
A51: Pistachio Nut | B51: 0 | C51: 0 | D51: 11 | E51: 1 | F51: 0 | G51: 63 | H51: 25 | I51: 0
A52: Poppyseed | B52: 0 | C52: 0 | D52: 10 | E52: 2 | F52: 0 | G52: 17 | H52: 69 | I52: 2
A53: Pumpkinseed | B53: 0 | C53: 0 | D53: 11 | E53: 8 | F53: 0 | G53: 33 | H53: 50 | I53: 0
A54: Rapeseed | B54: 0 | C54: 0 | D54: 0 | E54: 0 | F54: 0 | G54: 17 | H54: 13 | I54: 9
A55: Rice Bran | B55: 0 | C55: 1 | D55: 22 | E55: 3 | F55: 0 | G55: 38 | H55: 34 | I55: 2
A56: Rose Hip Seed | B56: 0 | C56: 0 | D56: 4 | E56: 2 | F56: 0 | G56: 12 | H56: 46 | I56: 31
A57: Safflower | B57: 0 | C57: 0 | D57: 7 | E57: 0 | F57: 0 | G57: 15 | H57: 75 | I57: 0
A58: Sal Butter | B58: 0 | C58: 0 | D58: 6 | E58: 44 | F58: 0 | G58: 40 | H58: 2 | I58: 0
A59: Sesame Seed | B59: 0 | C59: 0 | D59: 10 | E59: 5 | F59: 0 | G59: 40 | H59: 43 | I59: 0
A60: Shea Butter | B60: 0 | C60: 0 | D60: 5 | E60: 40 | F60: 0 | G60: 48 | H60: 6 | I60: 0
A61: Soybean | B61: 0 | C61: 0 | D61: 11 | E61: 5 | F61: 0 | G61: 24 | H61: 50 | I61: 8
A62: Stearic Acid | B62: 0 | C62: 0 | D62: 0 | E62: 99 | F62: 0 | G62: 0 | H62: 0 | I62: 0
A63: Sunflower Seed | B63: 0 | C63: 0 | D63: 7 | E63: 4 | F63: 0 | G63: 16 | H63: 70 | I63: 1
A64: Tallow, sheep | B64: 4 | C64: 10 | D64: 24 | E64: 13 | F64: 0 | G64: 26 | H64: 5 | I64: 0
A65: Tamanu | B65: 0 | C65: 0 | D65: 12 | E65: 13 | F65: 0 | G65: 34 | H65: 38 | I65: 1
A66: Walnut | B66: 0 | C66: 0 | D66: 7 | E66: 2 | F66: 0 | G66: 18 | H66: 60 | I66: 0
A67: Wheatgerm | B67: 0 | C67: 0 | D67: 17 | E67: 2 | F67: 0 | G67: 17 | H67: 58 | I67: 0
K96: Hardness | L96: Cleansing | M96: Conditioning | N96: Bubbly | O96: Creamy
J97: Olive | K97: =SUM(#REF!) ->  | L97: =SUM(#REF!) ->  | M97: =SUM(#REF!) ->  | N97: =SUM(#REF!,#REF!) ->  | O97: =SUM(#REF!) -> 
J98: Coconut | K98: =SUM(#REF!) ->  | L98: =SUM(#REF!) ->  | M98: =SUM(#REF!) ->  | N98: =SUM(#REF!,#REF!) ->  | O98: =SUM(#REF!) -> 
J99: Lard | K99: =SUM(B2:E2) -> 7 | L99: =SUM(B2:C2) -> 0 | M99: =SUM(F2:I2) -> 89 | N99: =SUM(F2,B2:C2) -> 0 | O99: =SUM(D2:F2) -> 7
J100: Shea Butter | K100: 6 | L100: 0 | M100: 93 | N100: 0 | O100: 6
J101: Mango Butter | K101: 22 | L101: 0 | M101: 70 | N101: 0 | O101: 22
J102: 0 | K102: 31 | L102: 0 | M102: 61 | N102: 0 | O102: 31
J103: 0 | K103: 85 | L103: 70 | M103: 10 | N103: 70 | O103: 15
J104: 0 | K104: 0 | L104: 0 | M104: 0 | N104: 0 | O104: 0
J105: Totals | K105: 14 | L105: 0 | M105: 68 | N105: 0 | O105: 14
K106: 24 | L106: 0 | M106: 75 | N106: 0 | O106: 24
K107: 8 | L107: 0 | M107: 88 | N107: 0 | O107: 8
K108: 11 | L108: 0 | M108: 85 | N108: 0 | O108: 11
K109: 0 | L109: 0 | M109: 0 | N109: 0 | O109: 0
K110: 6 | L110: 0 | M110: 91 | N110: 0 | O110: 6
K111: =SUM(#REF!) ->  | L111: =SUM(#REF!) ->  | M111: =SUM(#REF!) ->  | N111: =SUM(#REF!,#REF!) ->  | O111: =SUM(#REF!) -> 
K112: =SUM(B14:E14) -> 0 | L112: =SUM(B14:C14) -> 0 | M112: =SUM(F14:I14) -> 98 | N112: =SUM(F14,B14:C14) -> 90 | O112: =SUM(D14:F14) -> 90
K113: 33 | L113: 1 | M113: 59 | N113: 1 | O113: 32
K114: 61 | L114: 0 | M114: 38 | N114: 0 | O114: 61
K115: 79 | L115: 67 | M115: 10 | N115: 67 | O115: 12
K116: 14 | L116: 0 | M116: 84 | N116: 0 | O116: 14
K117: 26 | L117: 0 | M117: 71 | N117: 0 | O117: 26
K118: 32 | L118: 0 | M118: 55 | N118: 0 | O118: 32
K119: 0 | L119: 0 | M119: 89 | N119: 0 | O119: 0
K120: 9 | L120: 0 | M120: 90 | N120: 0 | O120: 9
K121: 27 | L121: 0 | M121: 64 | N121: 0 | O121: 27
K122: 12 | L122: 0 | M122: 88 | N122: 0 | O122: 12
K123: 8 | L123: 0 | M123: 85 | N123: 0 | O123: 8
K124: 8 | L124: 0 | M124: 90 | N124: 0 | O124: 8
K125: 62 | L125: 0 | M125: 35 | N125: 0 | O125: 62
K126: 0 | L126: 0 | M126: 12 | N126: 0 | O126: 0
K127: 60 | L127: 0 | M127: 37 | N127: 0 | O127: 60
K128: 8 | L128: 0 | M128: 91 | N128: 0 | O128: 8
K129: 0 | L129: 0 | M129: 0 | N129: 0 | O129: 0
K130: 42 | L130: 1 | M130: 52 | N130: 1 | O130: 41
K131: 9 | L131: 0 | M131: 90 | N131: 0 | O131: 9
K132: 14 | L132: 0 | M132: 61 | N132: 0 | O132: 14
K133: 35 | L133: 0 | M133: 61 | N133: 0 | O133: 35
K134: 49 | L134: 0 | M134: 48 | N134: 0 | O134: 49
K135: 0 | L135: 0 | M135: 0 | N135: 0 | O135: 0
K136: 0 | L136: 0 | M136: 0 | N136: 0 | O136: 0
K137: 4 | L137: 0 | M137: 41 | N137: 0 | O137: 4
K138: =SUM(#REF!) ->  | L138: =SUM(#REF!) ->  | M138: =SUM(#REF!) ->  | N138: =SUM(#REF!,#REF!) ->  | O138: =SUM(#REF!) -> 
K139: =SUM(B40:E40) -> 0 | L139: =SUM(B40:C40) -> 0 | M139: =SUM(F40:I40) -> 0 | N139: =SUM(F40,B40:C40) -> 0 | O139: =SUM(D40:F40) -> 0
K140: =SUM(B41:E41) -> 39 | L140: =SUM(B41:C41) -> 2 | M140: =SUM(F41:I41) -> 58 | N140: =SUM(F41,B41:C41) -> 2 | O140: =SUM(D41:F41) -> 37
K141: =SUM(#REF!) ->  | L141: =SUM(#REF!) ->  | M141: =SUM(#REF!) ->  | N141: =SUM(#REF!,#REF!) ->  | O141: =SUM(#REF!) -> 
K142: =SUM(B42:E42) -> 90 | L142: =SUM(B42:C42) -> 86 | M142: =SUM(F42:I42) -> 5 | N142: =SUM(F42,B42:C42) -> 86 | O142: =SUM(D42:F42) -> 4
K143: 17 | L143: 0 | M143: 83 | N143: 0 | O143: 17
K144: 17 | L144: 0 | M144: 82 | N144: 0 | O144: 17
K145: 36 | L145: 4 | M145: 57 | N145: 4 | O145: 32
K146: 50 | L146: 1 | M146: 49 | N146: 1 | O146: 49
K147: 75 | L147: 65 | M147: 18 | N147: 65 | O147: 10
K148: 8 | L148: 0 | M148: 91 | N148: 0 | O148: 8
K149: 11 | L149: 0 | M149: 82 | N149: 0 | O149: 11
K150: 8 | L150: 0 | M150: 87 | N150: 0 | O150: 8
K151: 12 | L151: 0 | M151: 88 | N151: 0 | O151: 12
K152: 12 | L152: 0 | M152: 88 | N152: 0 | O152: 12
K153: 19 | L153: 0 | M153: 83 | N153: 0 | O153: 19
K154: 0 | L154: 0 | M154: 39 | N154: 0 | O154: 0
K155: 26 | L155: 1 | M155: 74 | N155: 1 | O155: 25
K156: 6 | L156: 0 | M156: 89 | N156: 0 | O156: 6
K157: 7 | L157: 0 | M157: 90 | N157: 0 | O157: 7
K158: 50 | L158: 0 | M158: 42 | N158: 0 | O158: 50
K159: 15 | L159: 0 | M159: 83 | N159: 0 | O159: 15
K160: 45 | L160: 0 | M160: 54 | N160: 0 | O160: 45
K161: 16 | L161: 0 | M161: 82 | N161: 0 | O161: 16
K162: 99 | L162: 0 | M162: 0 | N162: 0 | O162: 99
K163: 11 | L163: 0 | M163: 87 | N163: 0 | O163: 11
K164: 51 | L164: 14 | M164: 31 | N164: 14 | O164: 37
K165: 25 | L165: 0 | M165: 73 | N165: 0 | O165: 25
K166: 9 | L166: 0 | M166: 78 | N166: 0 | O166: 9
K167: 19 | L167: 0 | M167: 75 | N167: 0 | O167: 19
K168: 0 | L168: 0 | M168: 0 | N168: 0 | O168: 0
K169: 0 | L169: 0 | M169: 0 | N169: 0 | O169: 0
K170: 0 | L170: 0 | M170: 0 | N170: 0 | O170: 0
K171: 0 | L171: 0 | M171: 0 | N171: 0 | O171: 0
K172: 0 | L172: 0 | M172: 0 | N172: 0 | O172: 0
K173: 0 | L173: 0 | M173: 0 | N173: 0 | O173: 0
K174: =SUM(B74:E74) -> 0 | L174: =SUM(B74:C74) -> 0 | M174: =SUM(F74:I74) -> 0 | N174: =SUM(F74,B74:C74) -> 0 | O174: =SUM(D74:F74) -> 0
K175: 0 | L175: 0 | M175: 0 | N175: 0 | O175: 0
K176: 0 | L176: 0 | M176: 0 | N176: 0 | O176: 0
K177: 0 | L177: 0 | M177: 0 | N177: 0 | O177: 0
K178: 0 | L178: 0 | M178: 0 | N178: 0 | O178: 0
K179: 0 | L179: 0 | M179: 0 | N179: 0 | O179: 0
K180: 0 | L180: 0 | M180: 0 | N180: 0 | O180: 0
K181: 0 | L181: 0 | M181: 0 | N181: 0 | O181: 0
K182: 0 | L182: 0 | M182: 0 | N182: 0 | O182: 0
K183: 0 | L183: 0 | M183: 0 | N183: 0 | O183: 0
K184: 0 | L184: 0 | M184: 0 | N184: 0 | O184: 0
K185: 0 | L185: 0 | M185: 0 | N185: 0 | O185: 0
K186: 0 | L186: 0 | M186: 0 | N186: 0 | O186: 0
K187: 0 | L187: 0 | M187: 0 | N187: 0 | O187: 0
K188: 0 | L188: 0 | M188: 0 | N188: 0 | O188: 0
K189: 0 | L189: 0 | M189: 0 | N189: 0 | O189: 0
K190: 0 | L190: 0 | M190: 0 | N190: 0 | O190: 0
K191: 0 | L191: 0 | M191: 0 | N191: 0 | O191: 0
K192: 0 | L192: 0 | M192: 0 | N192: 0 | O192: 0
K193: 0 | L193: 0 | M193: 0 | N193: 0 | O193: 0
